[Event "DEN-ch KK 2020"]
[Site "Svendborg"]
[Date "2020.10.16"]
[Round "5.8"]
[White "Rey Malde, Henrique"]
[Black "Liu, Casper"]
[Result "1-0"]
[ECO "B61"]
[WhiteElo "2201"]
[BlackElo "2155"]
[Annotator "ChessBase"]
[PlyCount "61"]
[EventDate "2020.10.09"]
[EventType "tourn"]
[EventCountry "DEN"]
[SourceTitle "playchess.com"]
[Source "ChessBase"]
[SourceQuality "1"]
[TimeControl "40/5400+30:1800+30"]

1. e4 {[%emt 0:00:00]} c5 {[%emt 0:00:00]} 2. Nf3 {[%emt 0:00:00]} d6 {[%emt 0:00:00]} 3. d4 {[%emt 0:00:01]} cxd4 {[%emt 0:00:00]} 4. Nxd4 {[%emt 0:00:08]} Nf6 {[%emt 0:00:00]} 5. Nc3 {[%emt 0:00:12]} Nc6 {[%emt 0:00:00]} 6. Bg5 {[%emt 0:01:54]} Bd7 {[%emt 0:00:14]} 7. Qd2 {[%emt 0:01:00]} Rc8 {[%emt 0:00:11]} 8. f4 {[%emt 0:00:06]} Nxd4 {[%emt 0:00:50]} 9. Qxd4 {[%emt 0:00:04]} Qa5 {[%emt 0:00:03]} 10. e5 {[%emt 0:01:40]} dxe5 {[%emt 0:00:06]} 11. fxe5 {[%emt 0:00:03]} e6 {[%emt 0:00:05]} 12. O-O-O {[%emt 0:00:14]} Bc5 {[%emt 0:03:06]} 13. Qd3 {[%emt 0:00:17]} Nd5 {[%emt 0:02:32]} 14. Nxd5 {[%emt 0:00:08]} exd5 {[%emt 0:00:04]} 15. Qxd5 {[%emt 0:00:06]} Bc6 {[%emt 0:02:52]} 16. Bd2 {[%emt 0:01:51]} Qb6 {[%emt 0:04:52]} 17. Qc4 {[%emt 0:00:16]} O-O {[%emt 0:01:09]} 18. e6 {[%emt 0:00:25]} fxe6 {[%emt 0:06:33]} 19. Qxe6+ {[%emt 0:00:10]} Kh8 {[%emt 0:00:09]} 20. Bc3 {[%emt 0:00:22]} Ba4 {[%emt 0:09:23]} 21. Bxg7+ {[%emt 0:16:43]} Kxg7 {[%emt 0:00:05]} 22. Qg4+ {[%emt 0:00:03]} Kh8 {[%emt 0:01:57]} 23. Qxa4 {[%emt 0:00:06]} Rf2 {[%emt 0:03:12]} 24. Kb1 {[%emt 0:17:45]} Ba3 {[%emt 0:08:48]} 25. Qxa3 {[%emt 0:16:57]} Rcxc2 {[%emt 0:00:18]} 26. Ka1 {[%emt 0:01:21]} Qd4 {[%emt 0:09:36]} 27. Bb5 {[%emt 0:08:54]} Qe5 {[%emt 0:02:08]} 28. Rd8+ {[%emt 0:03:30]} Kg7 {[%emt 0:00:06]} 29. Rd7+ {[%emt 0:03:47]} Kh8 {[%emt 0:00:42]} 30. Rd8+ {[%emt 0:05:50]} Kg7 {[%emt 0:00:04]} 31. Qg3+ {[%emt 0:00:05]} 1-0

[Event "DEN-ch KK 2020"]
[Site "Svendborg"]
[Date "2020.10.16"]
[Round "5.9"]
[White "Easwaralingam, Adesh"]
[Black "Matthiesen, Martin"]
[Result "1/2-1/2"]
[ECO "B31"]
[WhiteElo "2110"]
[BlackElo "2301"]
[Annotator "ChessBase"]
[PlyCount "81"]
[EventDate "2020.10.09"]
[EventType "tourn"]
[EventCountry "DEN"]
[SourceTitle "playchess.com"]
[Source "ChessBase"]
[SourceQuality "1"]
[TimeControl "40/5400+30:1800+30"]

1. e4 {[%emt 0:00:00]} c5 {[%emt 0:00:00]} 2. Nf3 {[%emt 0:00:00]} Nc6 {[%emt 0:00:00]} 3. Bb5 {[%emt 0:00:20]} g6 {[%emt 0:00:00]} 4. Bxc6 {[%emt 0:00:11]} dxc6 {[%emt 0:00:00]} 5. d3 {[%emt 0:00:06]} Bg7 {[%emt 0:00:00]} 6. h3 {[%emt 0:00:02]} Qc7 {[%emt 0:01:15]} 7. O-O {[%emt 0:02:32]} b6 {[%emt 0:01:09]} 8. a4 {[%emt 0:00:18]} a5 {[%emt 0:03:41]} 9. Na3 {[%emt 0:01:37]} Nf6 {[%emt 0:10:08]} 10. Be3 {[%emt 0:08:45]} Ba6 {[%emt 0:16:19]} 11. Qc1 {[%emt 0:06:38]} e5 {[%emt 0:08:56]} 12. Bh6 {[%emt 0:13:29]} O-O {[%emt 0:00:37]} 13. b3 {[%emt 0:05:58]} Nh5 {[%emt 0:02:01]} 14. Bxg7 {[%emt 0:08:10]} Nxg7 {[%emt 0:02:47]} 15. Qe3 {[%emt 0:05:25]} Rae8 {[%emt 0:03:26]} 16. Nc4 {[%emt 0:05:00]} f5 {[%emt 0:10:31]} 17. exf5 {[%emt 0:03:01]} Nxf5 {[%emt 0:07:53]} 18. Qd2 {[%emt 0:00:08]} e4 {[%emt 0:03:21]} 19. dxe4 {[%emt 0:12:14]} Bxc4 {[%emt 0:02:17]} 20. bxc4 {[%emt 0:00:06]} Nd6 {[%emt 0:05:11]} 21. Qd3 {[%emt 0:06:16]} Nxe4 {[%emt 0:02:23]} 22. Rfe1 {[%emt 0:00:33]} Nf6 {[%emt 0:05:30]} 23. Ng5 {[%emt 0:01:05]} Qd7 {[%emt 0:03:30]} 24. Rab1 {[%emt 0:06:57]} Rxe1+ {[%emt 0:05:00]} 25. Rxe1 {[%emt 0:00:08]} Re8 {[%emt 0:03:27]} 26. Rd1 {[%emt 0:06:13]} Qxd3 {[%emt 0:02:09]} 27. cxd3 {[%emt 0:02:22]} h6 {[%emt 0:00:32]} 28. Nf3 {[%emt 0:00:16]} Re2 {[%emt 0:00:13]} 29. Ra1 {[%emt 0:04:02]} Rb2 {[%emt 0:00:17]} 30. Ne5 {[%emt 0:00:18]} Nh5 {[%emt 0:01:25]} 31. g3 {[%emt 0:00:38]} g5 {[%emt 0:00:33]} 32. Nxc6 {[%emt 0:01:06]} Nf6 {[%emt 0:00:28]} 33. Ne5 {[%emt 0:00:22]} Rb4 {[%emt 0:00:50]} 34. Kg2 {[%emt 0:00:34]} Kg7 {[%emt 0:00:08]} 35. Kf3 {[%emt 0:00:31]} Rb3 {[%emt 0:00:33]} 36. Ke3 {[%emt 0:00:42]} Rb4 {[%emt 0:00:14]} 37. Nc6 {[%emt 0:01:00]} Rb3 {[%emt 0:00:12]} 38. Ne5 {[%emt 0:00:19]} Rb4 {[%emt 0:00:15]} 39. Kf3 {[%emt 0:00:37]} Rb3 {[%emt 0:00:16]} 40. Ke2 {[%emt 0:00:38]} Rb2+ {[%emt 0:00:13]} 41. Kf3 {[%emt 0:31:01]} 1/2-1/2

[Event "DEN-ch KK 2020"]
[Site "Svendborg"]
[Date "2020.10.16"]
[Round "5.10"]
[White "Meskenas, Paulius"]
[Black "Guindy, Esmat Susanne"]
[Result "1/2-1/2"]
[ECO "C02"]
[WhiteElo "2032"]
[BlackElo "2131"]
[Annotator "ChessBase"]
[PlyCount "123"]
[EventDate "2020.10.09"]
[EventType "tourn"]
[EventCountry "DEN"]
[SourceTitle "playchess.com"]
[Source "ChessBase"]
[SourceQuality "1"]
[TimeControl "40/5400+30:1800+30"]

1. e4 {[%emt 0:00:00]} e6 {[%emt 0:00:16]} 2. d4 {[%emt 0:00:00]} d5 {[%emt 0:00:07]} 3. e5 {[%emt 0:00:02]} c5 {[%emt 0:00:06]} 4. c3 {[%emt 0:00:05]} Nc6 {[%emt 0:00:06]} 5. Nf3 {[%emt 0:00:04]} Qb6 {[%emt 0:00:26]} 6. Bd3 {[%emt 0:00:14]} cxd4 {[%emt 0:00:12]} 7. cxd4 {[%emt 0:00:06]} Bd7 {[%emt 0:00:08]} 8. O-O {[%emt 0:00:07]} Nxd4 {[%emt 0:00:18]} 9. Nxd4 {[%emt 0:00:30]} Qxd4 {[%emt 0:00:20]} 10. Nc3 {[%emt 0:00:36]} a6 {[%emt 0:00:07]} 11. Re1 {[%emt 0:04:33]} Ne7 {[%emt 0:03:22]} 12. Be3 {[%emt 0:05:56]} Qxe5 {[%emt 0:04:20]} 13. Bc5 {[%emt 0:05:26]} Qc7 {[%emt 0:06:34]} 14. Bd4 {[%emt 0:06:06]} Bc6 {[%emt 0:10:57]} 15. Rc1 {[%emt 0:03:55]} Ng6 {[%emt 0:13:22]} 16. g3 {[%emt 0:06:37]} Rd8 {[%emt 0:10:05]} 17. Qh5 {[%emt 0:01:12]} Qd7 {[%emt 0:04:20]} 18. f4 {[%emt 0:04:19]} Ne7 {[%emt 0:01:54]} 19. Re2 {[%emt 0:02:55]} Qd6 {[%emt 0:05:32]} 20. a3 {[%emt 0:02:32]} Bd7 {[%emt 0:04:15]} 21. b4 {[%emt 0:07:09]} Rc8 {[%emt 0:04:59]} 22. Rce1 {[%emt 0:07:55]} Rxc3 {[%emt 0:03:53]} 23. Bxc3 {[%emt 0:00:28]} Qb6+ {[%emt 0:00:04]} 24. Kf1 {[%emt 0:07:38]} g6 {[%emt 0:10:38]} 25. Qe5 {[%emt 0:02:38]} Rg8 {[%emt 0:00:15]} 26. Bd4 {[%emt 0:00:12]} Qd8 {[%emt 0:00:25]} 27. Bc5 {[%emt 0:00:25]} Nc6 {[%emt 0:01:55]} 28. Qxd5 {[%emt 0:00:31]} Bxc5 {[%emt 0:02:10]} 29. Qxc5 {[%emt 0:01:46]} Qe7 {[%emt 0:00:29]} 30. Qb6 {[%emt 0:02:05]} Qd6 {[%emt 0:01:55]} 31. Be4 {[%emt 0:04:12]} Ke7 {[%emt 0:00:21]} 32. Qe3 {[%emt 0:05:54]} Rc8 {[%emt 0:02:10]} 33. Rd2 {[%emt 0:00:40]} Qc7 {[%emt 0:00:21]} 34. Qc5+ {[%emt 0:00:07]} Ke8 {[%emt 0:00:16]} 35. Red1 {[%emt 0:00:30]} Nb8 {[%emt 0:01:16]} 36. Qd4 {[%emt 0:02:53]} Bb5+ {[%emt 0:01:23]} 37. Kf2 {[%emt 0:01:05]} Nc6 {[%emt 0:01:06]} 38. Qc5 {[%emt 0:00:50]} Qe7 {[%emt 0:01:21]} 39. Rd6 {[%emt 0:00:34]} Qf6 {[%emt 0:00:33]} 40. Rd7 {[%emt 0:01:01]} Na7 {[%emt 0:01:46]} 41. Qd4 {[%emt 0:30:02]} Qxd4+ {[%emt 0:31:33]} 42. R7xd4 {[%emt 0:00:05]} Nc6 {[%emt 0:04:31]} 43. Rd6 {[%emt 0:01:23]} Ba4 {[%emt 0:00:00]} 44. R1d2 {[%emt 0:00:00]} h5 {[%emt 0:00:00]} 45. h3 {[%emt 0:00:00]} Nd8 {[%emt 0:00:00]} 46. g4 {[%emt 0:00:00]} hxg4 {[%emt 0:00:00]} 47. hxg4 {[%emt 0:00:00]} Ke7 {[%emt 0:00:00]} 48. g5 {[%emt 0:00:00]} Ke8 {[%emt 0:00:00]} 49. Bf3 {[%emt 0:00:00]} Ke7 {[%emt 0:00:00]} 50. Bd1 {[%emt 0:00:00]} Bc6 {[%emt 0:00:00]} 51. Bb3 {[%emt 0:00:00]} Rb8 {[%emt 0:00:00]} 52. R6d4 {[%emt 0:00:00]} Be8 {[%emt 0:00:00]} 53. Rc2 {[%emt 0:00:00]} Nc6 {[%emt 0:00:00]} 54. Rd3 {[%emt 0:00:00]} Bd7 {[%emt 0:00:00]} 55. Rcd2 {[%emt 0:00:00]} Be8 {[%emt 0:00:00]} 56. Rd6 {[%emt 0:01:57]} Rc8 {[%emt 0:00:00]} 57. Ba4 {[%emt 0:00:36]} Ra8 {[%emt 0:00:00]} 58. Ke3 {[%emt 0:03:07]} Ra7 {[%emt 0:00:00]} 59. Bd1 {[%emt 0:02:35]} Ra8 {[%emt 0:00:00]} 60. Bf3 {[%emt 0:00:40]} Rc8 {[%emt 0:00:00]} 61. Ke2 {[%emt 0:00:17]} Nd8 {[%emt 0:00:00]} 62. Kf2 {[%emt 0:01:51]} 1/2-1/2

[Event "DEN-ch KK 2020"]
[Site "Svendborg"]
[Date "2020.10.16"]
[Round "5.11"]
[White "Steffensen, Elena"]
[Black "Hald Falkesgaard, Jeppe"]
[Result "1-0"]
[ECO "B23"]
[WhiteElo "2081"]
[BlackElo "1984"]
[Annotator "NA"]
[PlyCount "87"]
[EventDate "2020.10.09"]
[EventType "tourn"]
[EventCountry "DEN"]
[SourceTitle "playchess.com"]
[Source "ChessBase"]
[SourceQuality "1"]
[TimeControl "40/5400+30:1800+30"]

1. e4 {[%emt 0:00:00]} c5 {[%emt 0:00:16]} 2. Nc3 {[%emt 0:00:00]} Nc6 {[%emt 0:00:07]} 3. f4 {[%emt 0:00:00]} g6 {[%emt 0:00:06]} 4. Nf3 {[%emt 0:00:00]} Bg7 {[%emt 0:00:06]} 5. g3 {[%emt 0:00:15]} e6 {[%emt 0:00:48]} 6. Bg2 {[%emt 0:01:46]} Nge7 {[%emt 0:00:13]} 7. O-O {[%emt 0:00:19]} O-O {[%emt 0:00:48]} 8. d3 {[%emt 0:00:21]} d5 {[%emt 0:02:36]} 9. e5 {[%emt 0:00:09]} a6 {[%emt 0:00:28]} 10. a3 {[%emt 0:03:02]} b5 {[%emt 0:01:34]} 11. Ne2 {[%emt 0:01:25]} f6 {[%emt 0:03:40]} 12. exf6 {[%emt 0:06:16]} Bxf6 {[%emt 0:00:09]} 13. c3 {[%emt 0:00:34]} Nf5 {[%emt 0:04:00]} 14. g4 {[%emt 0:07:29]} Nd6 {[%emt 0:04:09]} 15. Be3 $11 {[%emt 0:05:02]} Nb7 {[%emt 0:11:43]} 16. d4 {[%emt 0:02:30]} Be7 {[%emt 0:06:59]} 17. Ne5 {[%emt 0:02:29]} Nxe5 {[%emt 0:00:34]} 18. fxe5 {[%emt 0:00:09]} Na5 {[%emt 0:01:39]} 19. Nf4 {[%emt 0:05:47]} Nc4 {[%emt 0:05:26]} 20. Bc1 {[%emt 0:01:01]} b4 {[%emt 0:01:20]} 21. axb4 {[%emt 0:04:52]} cxb4 {[%emt 0:00:08]} 22. b3 {[%emt 0:00:32]} Na5 {[%emt 0:00:50]} 23. c4 {[%emt 0:01:06]} g5 {[%emt 0:04:38]} 24. Nxd5 {[%emt 0:00:24]} Rxf1+ {[%emt 0:00:13]} 25. Qxf1 {[%emt 0:00:28]} exd5 {[%emt 0:03:52]} 26. Bxd5+ {[%emt 0:00:10]} Kh8 {[%emt 0:00:41]} 27. Rxa5 {[%emt 0:00:48]} Rb8 {[%emt 0:05:20]} 28. Ra2 {[%emt 0:03:34]} Bxg4 {[%emt 0:01:06]} 29. Be3 {[%emt 0:02:20]} Qd7 {[%emt 0:01:01]} 30. Rxa6 {[%emt 0:01:33]} Bh3 {[%emt 0:01:35]} 31. Qf3 {[%emt 0:02:40]} g4 {[%emt 0:06:26]} 32. Qf7 {[%emt 0:05:08]} Rf8 {[%emt 0:01:22]} 33. Ra8 {[%emt 0:01:50]} Rxa8 {[%emt 0:00:32]} 34. Bxa8 {[%emt 0:00:32]} Qa7 {[%emt 0:00:45]} 35. Qe8+ {[%emt 0:01:23]} Kg7 {[%emt 0:00:08]} 36. Qa4 {[%emt 0:00:42]} Qb8 {[%emt 0:02:09]} 37. Qa6 {[%emt 0:02:40]} Kh8 {[%emt 0:01:29]} 38. Bg2 {[%emt 0:03:12]} Qf8 {[%emt 0:01:59]} 39. Qa8 {[%emt 0:01:41]} Bd8 {[%emt 0:00:20]} 40. Bxh3 {[%emt 0:01:20]} gxh3 {[%emt 0:00:13]} 41. Bg5 {[%emt 0:30:14]} Be7 {[%emt 0:31:14]} 42. Qxf8+ {[%emt 0:00:13]} Bxf8 {[%emt 0:00:08]} 43. d5 {[%emt 0:00:34]} Kg7 {[%emt 0:00:14]} 44. d6 {[%emt 0:00:56]} 1-0

[Event "DEN-ch KK 2020"]
[Site "Svendborg"]
[Date "2020.10.16"]
[Round "5.12"]
[White "Rossen, Claus"]
[Black "Holm, Filip"]
[Result "1-0"]
[ECO "B06"]
[WhiteElo "2099"]
[BlackElo "2210"]
[Annotator "ChessBase"]
[PlyCount "61"]
[EventDate "2020.10.09"]
[EventType "tourn"]
[EventCountry "DEN"]
[SourceTitle "playchess.com"]
[Source "ChessBase"]
[SourceQuality "1"]
[TimeControl "40/5400+30:1800+30"]

1. e4 {[%emt 0:00:00]} g6 {[%emt 0:00:00]} 2. d4 {[%emt 0:00:00]} Bg7 {[%emt 0:00:00]} 3. Nc3 {[%emt 0:00:00]} d6 {[%emt 0:00:00]} 4. Bg5 {[%emt 0:02:41]} Nd7 {[%emt 0:05:18]} 5. Nf3 {[%emt 0:05:06]} Ngf6 {[%emt 0:03:13]} 6. e5 {[%emt 0:10:53]} dxe5 {[%emt 0:07:18]} 7. dxe5 {[%emt 0:00:38]} Ng4 {[%emt 0:01:08]} 8. e6 {[%emt 0:01:22]} fxe6 {[%emt 0:00:20]} 9. Bc4 {[%emt 0:00:04]} Bxc3+ {[%emt 0:12:18]} 10. bxc3 {[%emt 0:00:07]} Kf7 {[%emt 0:03:06]} 11. Bxe6+ {[%emt 0:12:20]} Kxe6 {[%emt 0:00:24]} 12. Nd4+ {[%emt 0:00:04]} Kf7 {[%emt 0:00:08]} 13. Qxg4 {[%emt 0:00:09]} Nf6 {[%emt 0:00:35]} 14. Qh4 {[%emt 0:01:27]} Qd5 {[%emt 0:07:00]} 15. O-O {[%emt 0:01:40]} c5 {[%emt 0:01:26]} 16. Nf3 {[%emt 0:06:27]} h6 {[%emt 0:07:50]} 17. Rfe1 {[%emt 0:05:44]} Bf5 {[%emt 0:20:03]} 18. Rxe7+ {[%emt 0:06:19]} Kxe7 {[%emt 0:00:12]} 19. Bxf6+ {[%emt 0:00:05]} Kf7 {[%emt 0:04:50]} 20. Ne5+ {[%emt 0:08:32]} Ke6 {[%emt 0:00:23]} 21. Bxh8 {[%emt 0:00:13]} Rxh8 {[%emt 0:00:08]} 22. Re1 {[%emt 0:00:51]} g5 {[%emt 0:01:21]} 23. Qh5 {[%emt 0:03:00]} Kf6 {[%emt 0:02:44]} 24. c4 {[%emt 0:02:15]} Qg8 {[%emt 0:06:01]} 25. Qf3 {[%emt 0:01:07]} Qc8 {[%emt 0:00:46]} 26. g4 {[%emt 0:00:59]} Re8 {[%emt 0:00:25]} 27. Nd3 {[%emt 0:02:08]} Rxe1+ {[%emt 0:00:58]} 28. Nxe1 {[%emt 0:00:06]} Kg7 {[%emt 0:00:36]} 29. Qxf5 {[%emt 0:00:40]} Qe8 {[%emt 0:00:12]} 30. Nd3 {[%emt 0:00:16]} Qe2 {[%emt 0:00:40]} 31. Qe5+ {[%emt 0:00:11]} 1-0

[Event "DEN-ch KK 2020"]
[Site "Svendborg"]
[Date "2020.10.17"]
[Round "6.1"]
[White "Haubro, Sigfred"]
[Black "Rewitz, Poul"]
[Result "0-1"]
[ECO "A04"]
[WhiteElo "2163"]
[BlackElo "2222"]
[Annotator "ChessBase"]
[PlyCount "84"]
[EventDate "2020.10.09"]
[EventType "tourn"]
[EventCountry "DEN"]
[SourceTitle "playchess.com"]
[Source "ChessBase"]
[SourceQuality "1"]
[TimeControl "40/5400+30:1800+30"]

1. Nf3 {[%emt 0:04:36]} c6 {[%emt 0:00:00]} 2. b3 {[%emt 0:00:36]} f5 {[%emt 0:03:56]} 3. Bb2 {[%emt 0:01:53]} e6 {[%emt 0:01:26]} 4. e3 {[%emt 0:00:51]} Nf6 {[%emt 0:00:16]} 5. d4 {[%emt 0:00:21]} Be7 {[%emt 0:02:25]} 6. Bd3 {[%emt 0:00:18]} O-O {[%emt 0:00:48]} 7. Nbd2 {[%emt 0:00:16]} d5 {[%emt 0:01:47]} 8. O-O {[%emt 0:01:42]} a5 {[%emt 0:01:13]} 9. a4 {[%emt 0:01:16]} Na6 {[%emt 0:03:01]} 10. c3 {[%emt 0:04:53]} Bd7 {[%emt 0:01:05]} 11. Qe2 {[%emt 0:00:26]} Be8 {[%emt 0:01:04]} 12. Ne5 {[%emt 0:04:38]} Bh5 {[%emt 0:00:53]} 13. f3 {[%emt 0:04:11]} Nd7 {[%emt 0:05:07]} 14. Nxc6 {[%emt 0:06:19]} bxc6 {[%emt 0:01:01]} 15. Bxa6 {[%emt 0:00:08]} Qb6 {[%emt 0:05:51]} 16. Bd3 {[%emt 0:00:44]} e5 {[%emt 0:02:51]} 17. Qf2 {[%emt 0:06:15]} c5 {[%emt 0:10:01]} 18. Bb5 {[%emt 0:06:35]} Rad8 {[%emt 0:02:01]} 19. Rae1 {[%emt 0:16:16]} cxd4 {[%emt 0:10:38]} 20. exd4 {[%emt 0:00:32]} e4 {[%emt 0:06:33]} 21. f4 {[%emt 0:02:29]} Nf6 {[%emt 0:02:36]} 22. h3 {[%emt 0:04:41]} Bf7 {[%emt 0:02:20]} 23. Rc1 {[%emt 0:01:08]} Nh5 {[%emt 0:07:01]} 24. Qe3 {[%emt 0:04:52]} Qh6 {[%emt 0:04:50]} 25. Rcd1 {[%emt 0:15:42]} g5 {[%emt 0:02:26]} 26. fxg5 {[%emt 0:00:45]} Bxg5 {[%emt 0:00:25]} 27. Qe1 {[%emt 0:00:59]} Be3+ {[%emt 0:01:00]} 28. Kh1 {[%emt 0:03:01]} f4 {[%emt 0:00:41]} 29. Ba3 {[%emt 0:00:57]} Ng3+ {[%emt 0:02:55]} 30. Kh2 {[%emt 0:00:08]} Rfe8 {[%emt 0:01:25]} 31. Rg1 {[%emt 0:03:41]} Re6 {[%emt 0:00:49]} 32. Nf1 {[%emt 0:00:23]} Bxg1+ {[%emt 0:01:08]} 33. Kxg1 {[%emt 0:00:06]} Rg6 {[%emt 0:00:50]} 34. Kh2 {[%emt 0:01:20]} Nf5 {[%emt 0:02:32]} 35. Bc1 {[%emt 0:00:56]} Kh8 {[%emt 0:01:20]} 36. Qf2 {[%emt 0:00:34]} Rdg8 {[%emt 0:00:58]} 37. Bd7 {[%emt 0:00:31]} Rxg2+ {[%emt 0:01:16]} 38. Qxg2 {[%emt 0:00:15]} Rxg2+ {[%emt 0:00:08]} 39. Kxg2 {[%emt 0:00:03]} f3+ {[%emt 0:02:21]} 40. Kg1 {[%emt 0:01:03]} Qg7+ {[%emt 0:01:56]} 41. Kf2 {[%emt 0:30:33]} Qg2+ {[%emt 0:30:28]} 42. Ke1 {[%emt 0:00:05]} Qe2# {[%emt 0:00:13]} 0-1

[Event "DEN-ch KK 2020"]
[Site "Svendborg"]
[Date "2020.10.17"]
[Round "6.3"]
[White "Thuesen, Mogens"]
[Black "Thorsbro, Peter"]
[Result "0-1"]
[ECO "A25"]
[WhiteElo "2210"]
[BlackElo "2165"]
[Annotator "ChessBase"]
[PlyCount "54"]
[EventDate "2020.10.09"]
[EventType "tourn"]
[EventCountry "DEN"]
[SourceTitle "playchess.com"]
[Source "ChessBase"]
[SourceQuality "1"]
[TimeControl "40/5400+30:1800+30"]

1. c4 {[%emt 0:00:00]} e5 {[%emt 0:01:08]} 2. Nc3 {[%emt 0:02:03]} Nc6 {[%emt 0:01:28]} 3. g3 {[%emt 0:00:38]} Nf6 {[%emt 0:00:11]} 4. Bg2 {[%emt 0:00:07]} Bc5 {[%emt 0:00:10]} 5. e3 {[%emt 0:04:45]} O-O {[%emt 0:03:48]} 6. Nge2 {[%emt 0:01:20]} a6 {[%emt 0:04:18]} 7. O-O {[%emt 0:00:25]} h6 {[%emt 0:02:22]} 8. a3 {[%emt 0:16:51]} Ba7 {[%emt 0:01:54]} 9. b4 {[%emt 0:06:40]} d6 {[%emt 0:14:39]} 10. Qc2 {[%emt 0:04:10]} Ne7 {[%emt 0:04:51]} 11. d4 {[%emt 0:10:17]} exd4 {[%emt 0:07:51]} 12. Nxd4 {[%emt 0:00:40]} Bxd4 {[%emt 0:02:22]} 13. exd4 {[%emt 0:00:05]} d5 {[%emt 0:00:09]} 14. c5 {[%emt 0:09:49]} Bf5 {[%emt 0:01:10]} 15. Qd1 {[%emt 0:01:11]} Qd7 {[%emt 0:01:52]} 16. Re1 {[%emt 0:03:32]} Ng6 {[%emt 0:01:16]} 17. a4 {[%emt 0:03:38]} c6 {[%emt 0:02:07]} 18. Ra2 {[%emt 0:01:13]} Rfe8 {[%emt 0:01:21]} 19. Rae2 {[%emt 0:00:30]} Rxe2 {[%emt 0:00:29]} 20. Qxe2 {[%emt 0:04:04]} Re8 {[%emt 0:01:00]} 21. Qf1 {[%emt 0:01:26]} Rxe1 {[%emt 0:06:56]} 22. Qxe1 {[%emt 0:00:12]} Bh3 {[%emt 0:00:19]} 23. Bh1 {[%emt 0:02:49]} Qf5 {[%emt 0:01:25]} 24. Ne2 {[%emt 0:10:10]} Qc2 {[%emt 0:05:59]} 25. a5 {[%emt 0:02:05]} Bf5 {[%emt 0:02:25]} 26. Qd2 {[%emt 0:04:01]} Qc4 {[%emt 0:01:43]} 27. f3 {[%emt 0:01:39]} Bd3 {[%emt 0:00:49]} 0-1

[Event "DEN-ch KK 2020"]
[Site "Svendborg"]
[Date "2020.10.17"]
[Round "6.5"]
[White "Kakulidis, Ellen"]
[Black "Kolbak, Jens"]
[Result "1/2-1/2"]
[ECO "D02"]
[WhiteElo "2073"]
[BlackElo "2114"]
[Annotator "ChessBase"]
[PlyCount "111"]
[EventDate "2020.10.09"]
[EventType "tourn"]
[EventCountry "DEN"]
[SourceTitle "playchess.com"]
[Source "ChessBase"]
[SourceQuality "1"]
[TimeControl "40/5400+30:1800+30"]

1. d4 {[%emt 0:00:00]} d5 {[%emt 0:00:00]} 2. Nf3 {[%emt 0:00:00]} e6 {[%emt 0:00:34]} 3. g3 {[%emt 0:00:00]} Nf6 {[%emt 0:00:34]} 4. Bg2 {[%emt 0:00:01]} c5 {[%emt 0:00:44]} 5. O-O {[%emt 0:01:16]} Nc6 {[%emt 0:00:26]} 6. c4 {[%emt 0:01:04]} Be7 {[%emt 0:02:03]} 7. cxd5 {[%emt 0:02:50]} Nxd5 {[%emt 0:00:54]} 8. Nc3 {[%emt 0:02:25]} Nxc3 {[%emt 0:05:15]} 9. bxc3 {[%emt 0:00:08]} O-O {[%emt 0:00:20]} 10. Qd3 {[%emt 0:10:39]} Qa5 {[%emt 0:05:13]} 11. Bg5 {[%emt 0:08:58]} c4 {[%emt 0:10:43]} 12. Qd2 {[%emt 0:07:08]} Bxg5 {[%emt 0:04:26]} 13. Nxg5 {[%emt 0:00:42]} h6 {[%emt 0:02:07]} 14. Nf3 {[%emt 0:03:10]} Rb8 {[%emt 0:05:22]} 15. a4 {[%emt 0:03:57]} Bd7 {[%emt 0:02:38]} 16. Rfb1 {[%emt 0:01:54]} Qc7 {[%emt 0:07:07]} 17. Qa2 {[%emt 0:06:12]} Na5 {[%emt 0:04:07]} 18. Nd2 {[%emt 0:03:01]} b6 {[%emt 0:07:22]} 19. e3 {[%emt 0:02:27]} Bc8 {[%emt 0:02:21]} 20. f4 {[%emt 0:10:46]} Ba6 {[%emt 0:01:16]} 21. Rf1 {[%emt 0:03:00]} Rbc8 {[%emt 0:06:07]} 22. Rf2 {[%emt 0:01:29]} Nb3 {[%emt 0:01:37]} 23. Raf1 {[%emt 0:00:56]} Nxd2 {[%emt 0:00:24]} 24. Qxd2 {[%emt 0:00:19]} Rcd8 {[%emt 0:03:13]} 25. f5 {[%emt 0:02:48]} exf5 {[%emt 0:05:21]} 26. Rxf5 {[%emt 0:01:13]} Bc8 {[%emt 0:00:17]} 27. R5f4 {[%emt 0:00:42]} a6 {[%emt 0:01:53]} 28. Be4 {[%emt 0:06:29]} Bb7 {[%emt 0:04:21]} 29. Bxb7 {[%emt 0:03:16]} Qxb7 {[%emt 0:00:07]} 30. e4 {[%emt 0:00:47]} Qc6 {[%emt 0:01:54]} 31. Qc2 {[%emt 0:01:41]} b5 {[%emt 0:02:07]} 32. axb5 {[%emt 0:01:06]} axb5 {[%emt 0:00:08]} 33. Qd1 {[%emt 0:01:06]} Qd7 {[%emt 0:04:42]} 34. e5 {[%emt 0:01:06]} Qd5 {[%emt 0:01:21]} 35. Qg4 {[%emt 0:00:33]} Ra8 {[%emt 0:01:13]} 36. Qe2 {[%emt 0:01:36]} Ra6 {[%emt 0:01:40]} 37. Qf3 {[%emt 0:01:10]} Qxf3 {[%emt 0:04:45]} 38. R4xf3 {[%emt 0:00:18]} b4 {[%emt 0:01:27]} 39. cxb4 {[%emt 0:00:27]} Rd8 {[%emt 0:00:12]} 40. Rxf7 {[%emt 0:02:57]} Rxd4 {[%emt 0:00:08]} 41. R7f4 {[%emt 0:38:32]} Rd2 {[%emt 0:05:24]} 42. R4f2 {[%emt 0:00:00]} Rd5 {[%emt 0:01:20]} 43. Re2 {[%emt 0:00:00]} Re6 {[%emt 0:00:12]} 44. Rc1 {[%emt 0:00:00]} Rdxe5 {[%emt 0:03:04]} 45. Rxe5 {[%emt 0:00:00]} Rxe5 {[%emt 0:00:06]} 46. Rxc4 {[%emt 0:00:00]} Re2 {[%emt 0:00:06]} 47. Rc7 {[%emt 0:00:00]} Rb2 {[%emt 0:00:37]} 48. Rb7 {[%emt 0:00:00]} Kh7 {[%emt 0:00:30]} 49. b5 {[%emt 0:00:00]} Kg6 {[%emt 0:00:30]} 50. b6 {[%emt 0:00:00]} Kf6 {[%emt 0:06:20]} 51. h4 {[%emt 0:00:00]} g6 {[%emt 0:07:41]} 52. Rb8 {[%emt 0:00:00]} Kf5 {[%emt 0:01:03]} 53. b7 {[%emt 0:01:44]} Kg4 {[%emt 0:00:12]} 54. Rg8 {[%emt 0:01:01]} Rxb7 {[%emt 0:00:08]} 55. Rxg6+ {[%emt 0:00:09]} Kh3 {[%emt 0:04:49]} 56. Rxh6 {[%emt 0:01:16]} 1/2-1/2